[Event "44th Chess Olympiad Women 2022"]
[Site "Chennai"]
[Date "2022.08.09"]
[Round "11.14"]
[White "Worek, Joanna"]
[Black "Agrest, Inna"]
[Result "1-0"]
[ECO "C78"]
[WhiteElo "2280"]
[BlackElo "2217"]
[Annotator "RC"]
[PlyCount "105"]
[EventDate "2022.07.29"]
[EventType "team-tourn"]
[EventCountry "IND"]
[SourceTitle "playchess.com"]
[Source "ChessBase"]
[SourceQuality "1"]
[WhiteTeam "Czech Republic"]
[BlackTeam "Sweden"]
[WhiteTeamCountry "CZE"]
[BlackTeamCountry "SWE"]
[TimeControl "40/5400+30:1800+30"]

1. e4 {[%emt 0:00:02]} e5 {[%emt 0:00:07]} 2. Nf3 {[%emt 0:00:05]} Nc6 {[%emt 0:00:08]} 3. Bb5 {[%emt 0:00:07]} a6 {[%emt 0:00:24]} 4. Ba4 {[%emt 0:00:06]} Nf6 {[%emt 0:00:16]} 5. O-O {[%emt 0:00:07]} b5 {[%emt 0:00:19]} 6. Bb3 {[%emt 0:00:07]} Bc5 {[%emt 0:00:06]} 7. c3 {[%emt 0:00:41]} d6 {[%emt 0:01:36]} 8. d4 {[%emt 0:00:14]} Bb6 {[%emt 0:00:39]} 9. Be3 {[%emt 0:00:07]} Rb8 {[%emt 0:07:35]} 10. Nbd2 {[%emt 0:01:19]} O-O {[%emt 0:00:59]} 11. dxe5 {[%emt 0:02:59]} dxe5 {[%emt 0:02:28]} 12. Qe2 {[%emt 0:00:08]} Qe7 {[%emt 0:08:49]} 13. Rfd1 {[%emt 0:00:21]} Bxe3 {[%emt 0:20:09]} 14. Qxe3 {[%emt 0:00:45]} Nh5 {[%emt 0:00:54]} 15. a4 {[%emt 0:26:12]} Nf4 {[%emt 0:09:29]} 16. axb5 {[%emt 0:00:40]} axb5 {[%emt 0:00:25]} 17. Nf1 {[%emt 0:05:34]} Rb6 {[%emt 0:10:57]} 18. Ng3 {[%emt 0:06:01]} Bg4 {[%emt 0:05:20]} 19. h3 {[%emt 0:02:55]} Bxf3 {[%emt 0:09:51]} 20. Qxf3 {[%emt 0:00:13]} g6 {[%emt 0:01:38]} 21. Ne2 {[%emt 0:10:38]} Ne6 {[%emt 0:05:18]} 22. Rd5 {[%emt 0:02:03]} b4 {[%emt 0:02:01]} 23. Bc4 {[%emt 0:02:04]} bxc3 {[%emt 0:01:20]} 24. bxc3 {[%emt 0:00:02]} Rfb8 {[%emt 0:01:47]} 25. Kh2 {[%emt 0:04:39]} Kg7 {[%emt 0:02:34]} 26. Rad1 {[%emt 0:01:22]} Qf6 {[%emt 0:00:50]} 27. Qe3 {[%emt 0:01:28]} Rb1 {[%emt 0:04:19]} 28. Rxb1 {[%emt 0:05:38]} Rxb1 {[%emt 0:00:01]} 29. Rd7 {[%emt 0:00:10]} Ncd8 {[%emt 0:00:28]} 30. Ng1 {[%emt 0:08:34]} h6 {[%emt 0:02:32]} 31. Nf3 {[%emt 0:00:38]} Rb2 {[%emt 0:00:19]} 32. g3 {[%emt 0:02:33]} c6 {[%emt 0:01:11]} 33. Kg2 {[%emt 0:00:46]} Nb7 {[%emt 0:01:02]} 34. Nh2 {[%emt 0:05:39]} h5 {[%emt 0:00:43]} 35. Nf3 {[%emt 0:01:12]} Nbd8 {[%emt 0:00:33]} 36. h4 {[%emt 0:00:39]} Nf8 {[%emt 0:00:42]} 37. Rd1 {[%emt 0:02:56]} Nfe6 {[%emt 0:00:22]} 38. Qc1 {[%emt 0:01:09]} Rb7 {[%emt 0:00:29]} 39. Qd2 {[%emt 0:00:05]} Ra7 {[%emt 0:00:47]} 40. Qd6 {[%emt 0:00:19]} Ra5 {[%emt 0:00:29]} 41. Qb4 {[%emt 0:34:41]} Ra7 {[%emt 0:06:57]} 42. Ng5 {[%emt 0:00:00]} Rb7 {[%emt 0:11:35]} 43. Qa3 {[%emt 0:00:00]} Qe7 {[%emt 0:06:24]} 44. Qa5 {[%emt 0:00:00]} Nxg5 {[%emt 0:05:29]} 45. hxg5 {[%emt 0:00:00]} Rb8 {[%emt 0:00:06]} 46. Rd3 {[%emt 0:00:00]} c5 {[%emt 0:02:05]} 47. Rd5 {[%emt 0:00:00]} Qxg5 {[%emt 0:00:55]} 48. Qc7 {[%emt 0:00:00]} Ra8 {[%emt 0:00:28]} 49. Rxe5 {[%emt 0:02:26]} Qf6 {[%emt 0:00:07]} 50. Re8 {[%emt 0:00:24]} Qxc3 {[%emt 0:00:46]} 51. Bd5 {[%emt 0:00:38]} Ra3 {[%emt 0:00:31]} 52. Qf4 {[%emt 0:00:52]} Qa5 {[%emt 0:00:37]} 53. Qe5+ {[%emt 0:00:07]} 1-0

[Event "44th Chess Olympiad Women 2022"]
[Site "Chennai"]
[Date "2022.08.09"]
[Round "11.14"]
[White "Koubova, Anna Marie"]
[Black "Johansson, Viktoria"]
[Result "1-0"]
[ECO "A11"]
[WhiteElo "2115"]
[BlackElo "2041"]
[Annotator "NA RC"]
[PlyCount "85"]
[EventDate "2022.07.29"]
[EventType "team-tourn"]
[EventCountry "IND"]
[SourceTitle "playchess.com"]
[Source "ChessBase"]
[SourceQuality "1"]
[WhiteTeam "Czech Republic"]
[BlackTeam "Sweden"]
[WhiteTeamCountry "CZE"]
[BlackTeamCountry "SWE"]
[TimeControl "40/5400+30:1800+30"]

1. Nf3 {[%emt 0:00:16]} d5 {[%emt 0:00:20]} 2. c4 {[%emt 0:00:13]} c6 {[%emt 0:00:18]} 3. e3 {[%emt 0:00:12]} Nf6 {[%emt 0:00:17]} 4. Nc3 {[%emt 0:00:12]} e6 {[%emt 0:02:18]} 5. b3 {[%emt 0:01:12]} Nbd7 {[%emt 0:00:59]} 6. Bb2 {[%emt 0:00:20]} Bd6 {[%emt 0:00:26]} 7. Qc2 {[%emt 0:00:37]} O-O {[%emt 0:00:41]} 8. Rg1 {[%emt 0:01:02]} e5 {[%emt 0:13:30]} 9. cxd5 {[%emt 0:00:21]} cxd5 {[%emt 0:00:16]} 10. Nb5 {[%emt 0:01:12]} Qe7 {[%emt 0:03:18]} 11. Nxd6 {[%emt 0:15:13]} Qxd6 {[%emt 0:00:14]} 12. Be2 {[%emt 0:00:39]} Re8 {[%emt 0:07:42]} 13. O-O-O {[%emt 0:12:41]} Nf8 {[%emt 0:03:19]} 14. Kb1 {[%emt 0:01:52]} Bd7 {[%emt 0:02:21]} 15. d3 {[%emt 0:01:31]} a5 {[%emt 0:05:18]} 16. Qc3 {[%emt 0:02:54]} Ng6 {[%emt 0:05:02]} 17. Rc1 {[%emt 0:05:40]} Rec8 {[%emt 0:14:24]} 18. Qd2 {[%emt 0:00:40]} a4 {[%emt 0:01:32]} 19. Rxc8+ {[%emt 0:00:43]} Rxc8 {[%emt 0:00:30]} 20. Qa5 {[%emt 0:06:33]} axb3 {[%emt 0:04:27]} 21. axb3 {[%emt 0:03:37]} h6 {[%emt 0:01:04]} 22. Rc1 {[%emt 0:03:38]} Rxc1+ {[%emt 0:07:52]} 23. Kxc1 {[%emt 0:06:14]} e4 {[%emt 0:07:30]} 24. Ne1 {[%emt 0:05:36]} Kh7 {[%emt 0:04:49]} 25. h3 {[%emt 0:01:38]} Ne5 {[%emt 0:00:41]} 26. f3 {[%emt 0:08:24]} exf3 {[%emt 0:06:50]} 27. Nxf3 {[%emt 0:01:14]} Nc6 {[%emt 0:00:20]} 28. Qa3 {[%emt 0:07:42]} Qg3 {[%emt 0:02:06]} 29. Qf8 {[%emt 0:01:25]} Be6 {[%emt 0:00:36]} 30. Bxf6 {[%emt 0:01:37]} gxf6 {[%emt 0:00:43]} 31. d4 {[%emt 0:01:11]} Qxg2 {[%emt 0:00:42]} 32. Bd3+ {[%emt 0:01:04]} f5 {[%emt 0:00:55]} 33. Bxf5+ {[%emt 0:00:22]} Bxf5 {[%emt 0:00:03]} 34. Qxf7+ {[%emt 0:00:09]} Kh8 {[%emt 0:00:17]} 35. Qf8+ {[%emt 0:03:45]} Kh7 {[%emt 0:01:52]} 36. Qxf5+ {[%emt 0:00:39]} Kh8 {[%emt 0:00:07]} 37. Qf8+ {[%emt 0:01:59]} Kh7 {[%emt 0:00:14]} 38. Qf7+ {[%emt 0:00:09]} Kh8 {[%emt 0:00:19]} 39. Nh4 {[%emt 0:02:20]} Qg1+ {[%emt 0:01:13]} 40. Kd2 {[%emt 0:02:00]} Ne7 {[%emt 0:01:51]} 41. Qe8+ {[%emt 0:09:37]} Ng8 {[%emt 0:03:30]} 42. Ng6+ {[%emt 0:00:33]} Kg7 {[%emt 0:00:06]} 43. Qf8+ {[%emt 0:00:19]} 1-0

[Event "44th Chess Olympiad Women 2022"]
[Site "Chennai"]
[Date "2022.08.09"]
[Round "11.14"]
[White "Cramling Bellon, Anna"]
[Black "Pilsova, Karolina"]
[Result "0-1"]
[ECO "E12"]
[WhiteElo "2065"]
[BlackElo "2230"]
[Annotator "RC"]
[PlyCount "168"]
[EventDate "2022.07.29"]
[EventType "team-tourn"]
[EventCountry "IND"]
[SourceTitle "playchess.com"]
[Source "ChessBase"]
[SourceQuality "1"]
[WhiteTeam "Sweden"]
[BlackTeam "Czech Republic"]
[WhiteTeamCountry "SWE"]
[BlackTeamCountry "CZE"]
[TimeControl "40/5400+30:1800+30"]

1. d4 {[%emt 0:00:06]} Nf6 {[%emt 0:00:06]} 2. c4 {[%emt 0:00:06]} e6 {[%emt 0:00:05]} 3. Nf3 {[%emt 0:00:35]} b6 {[%emt 0:00:30]} 4. Nc3 {[%emt 0:00:38]} Bb7 {[%emt 0:00:29]} 5. Bg5 {[%emt 0:07:15]} h6 {[%emt 0:04:29]} 6. Bh4 {[%emt 0:03:05]} Be7 {[%emt 0:04:49]} 7. e3 {[%emt 0:02:51]} d6 {[%emt 0:02:56]} 8. Bd3 {[%emt 0:01:39]} Nbd7 {[%emt 0:01:55]} 9. O-O {[%emt 0:02:09]} O-O {[%emt 0:05:08]} 10. Qe2 {[%emt 0:15:10]} e5 {[%emt 0:07:56]} 11. Bc2 {[%emt 0:02:23]} Re8 {[%emt 0:20:44]} 12. dxe5 {[%emt 0:12:03]} Bxf3 {[%emt 0:13:15]} 13. Qxf3 {[%emt 0:01:00]} Nxe5 {[%emt 0:00:06]} 14. Qe2 {[%emt 0:01:17]} Nfd7 {[%emt 0:01:46]} 15. Bxe7 {[%emt 0:04:17]} Rxe7 {[%emt 0:01:39]} 16. f4 {[%emt 0:12:38]} Ng6 {[%emt 0:01:52]} 17. f5 {[%emt 0:12:53]} Nge5 {[%emt 0:04:42]} 18. f6 {[%emt 0:10:22]} Nxf6 {[%emt 0:05:45]} 19. Rxf6 {[%emt 0:00:03]} gxf6 {[%emt 0:00:06]} 20. Nd5 {[%emt 0:00:04]} Re6 {[%emt 0:01:40]} 21. Bf5 {[%emt 0:01:47]} c6 {[%emt 0:05:32]} 22. Nf4 {[%emt 0:00:13]} Re8 {[%emt 0:02:06]} 23. Qh5 {[%emt 0:01:17]} Kg7 {[%emt 0:02:14]} 24. Qh4 {[%emt 0:00:55]} Rg8 {[%emt 0:01:11]} 25. Rf1 {[%emt 0:02:01]} Qe7 {[%emt 0:09:49]} 26. Nh5+ {[%emt 0:02:16]} Kf8 {[%emt 0:00:36]} 27. Nxf6 {[%emt 0:01:21]} h5 {[%emt 0:00:36]} 28. h3 {[%emt 0:03:33]} Rg7 {[%emt 0:01:54]} 29. Qxh5 {[%emt 0:00:27]} Qxf6 {[%emt 0:00:22]} 30. Qh8+ {[%emt 0:00:03]} Ke7 {[%emt 0:00:08]} 31. Qxa8 {[%emt 0:00:03]} Rg5 {[%emt 0:00:56]} 32. e4 {[%emt 0:01:21]} Qh6 {[%emt 0:00:29]} 33. Qxa7+ {[%emt 0:00:13]} Kf8 {[%emt 0:00:03]} 34. Qxb6 {[%emt 0:00:20]} Rg3 {[%emt 0:00:37]} 35. Qf2 {[%emt 0:00:42]} Qg5 {[%emt 0:00:42]} 36. Bg4 {[%emt 0:00:18]} Rd3 {[%emt 0:00:32]} 37. Qf4 {[%emt 0:00:42]} Qh4 {[%emt 0:00:30]} 38. Qf6 {[%emt 0:00:47]} Qxf6 {[%emt 0:00:42]} 39. Rxf6 {[%emt 0:00:05]} Ke7 {[%emt 0:00:04]} 40. Rf2 {[%emt 0:00:30]} Rd4 {[%emt 0:00:48]} 41. Bf5 {[%emt 0:09:17]} Nxc4 {[%emt 0:03:01]} 42. g4 {[%emt 0:06:52]} Nd2 {[%emt 0:03:39]} 43. Re2 {[%emt 0:01:10]} Kf6 {[%emt 0:00:36]} 44. Kf2 {[%emt 0:01:40]} Ke5 {[%emt 0:00:38]} 45. h4 {[%emt 0:02:28]} Kf4 {[%emt 0:03:17]} 46. h5 {[%emt 0:02:18]} Nf3 {[%emt 0:00:29]} 47. e5 {[%emt 0:07:04]} Nxe5 {[%emt 0:08:02]} 48. h6 {[%emt 0:01:06]} Rb4 {[%emt 0:00:26]} 49. h7 {[%emt 0:00:51]} Rb8 {[%emt 0:00:04]} 50. Re4+ {[%emt 0:00:33]} Kg5 {[%emt 0:00:02]} 51. Rb4 {[%emt 0:01:11]} Rh8 {[%emt 0:02:24]} 52. a4 {[%emt 0:00:37]} Ng6 {[%emt 0:01:17]} 53. Bxg6 {[%emt 0:01:37]} Kxg6 {[%emt 0:00:32]} 54. Rb6 {[%emt 0:00:05]} Rxh7 {[%emt 0:01:50]} 55. a5 {[%emt 0:00:15]} f5 {[%emt 0:04:49]} 56. gxf5+ {[%emt 0:00:26]} Kxf5 {[%emt 0:00:03]} 57. a6 {[%emt 0:00:18]} Ke5 {[%emt 0:01:37]} 58. Rb7 {[%emt 0:01:29]} Rh1 {[%emt 0:01:00]} 59. Rb3 {[%emt 0:00:42]} Rh7 {[%emt 0:00:39]} 60. Ra3 {[%emt 0:00:23]} Ra7 {[%emt 0:00:05]} 61. Ke3 {[%emt 0:00:34]} Kd5 {[%emt 0:00:33]} 62. Ra5+ {[%emt 0:00:28]} Kc4 {[%emt 0:00:31]} 63. Ke4 {[%emt 0:00:36]} Kb4 {[%emt 0:00:29]} 64. Ra3 {[%emt 0:00:18]} Kb5 {[%emt 0:00:11]} 65. Rd3 {[%emt 0:00:39]} d5+ {[%emt 0:00:48]} 66. Kd4 {[%emt 0:00:03]} Kxa6 {[%emt 0:01:29]} 67. Kc5 {[%emt 0:00:55]} Kb7 {[%emt 0:00:17]} 68. Kd6 {[%emt 0:00:18]} Ra6 {[%emt 0:00:38]} 69. Rg3 {[%emt 0:00:32]} Rb6 {[%emt 0:01:22]} 70. b3 {[%emt 0:00:35]} Rb5 {[%emt 0:00:29]} 71. Rc3 {[%emt 0:00:39]} d4 {[%emt 0:00:11]} 72. Rd3 {[%emt 0:00:26]} Rd5+ {[%emt 0:00:12]} 73. Ke6 {[%emt 0:00:11]} Kb6 {[%emt 0:00:10]} 74. Kf6 {[%emt 0:00:52]} Kb5 {[%emt 0:00:12]} 75. Ke6 {[%emt 0:00:08]} Kb4 {[%emt 0:00:30]} 76. Kf6 {[%emt 0:00:25]} Ka3 {[%emt 0:00:15]} 77. Ke6 {[%emt 0:00:30]} Kb2 {[%emt 0:00:23]} 78. b4 {[%emt 0:00:03]} Kc2 {[%emt 0:00:05]} 79. Rh3 {[%emt 0:01:24]} d3 {[%emt 0:00:26]} 80. b5 {[%emt 0:00:33]} Rxb5 {[%emt 0:00:11]} 81. Kd6 {[%emt 0:00:25]} d2 {[%emt 0:00:14]} 82. Rh2 {[%emt 0:00:11]} Kc1 {[%emt 0:00:12]} 83. Kxc6 {[%emt 0:00:25]} Rg5 {[%emt 0:00:17]} 84. Rh1+ {[%emt 0:00:31]} d1=Q {[%emt 0:00:08]} 0-1

[Event "44th Chess Olympiad Women 2022"]
[Site "Chennai"]
[Date "2022.08.09"]
[Round "11.15"]
[White "Tsolakidou, Stavroula"]
[Black "Narva, Mai"]
[Result "1/2-1/2"]
[ECO "A63"]
[WhiteElo "2362"]
[BlackElo "2385"]
[Annotator "RC"]
[PlyCount "52"]
[EventDate "2022.07.29"]
[EventType "team-tourn"]
[EventCountry "IND"]
[SourceTitle "playchess.com"]
[Source "ChessBase"]
[SourceQuality "1"]
[WhiteTeam "Greece"]
[BlackTeam "Estonia"]
[WhiteTeamCountry "GRE"]
[BlackTeamCountry "EST"]
[TimeControl "40/5400+30:1800+30"]

1. d4 {[%emt 0:00:03]} Nf6 {[%emt 0:00:13]} 2. c4 {[%emt 0:00:07]} e6 {[%emt 0:00:19]} 3. g3 {[%emt 0:00:16]} c5 {[%emt 0:01:21]} 4. d5 {[%emt 0:01:04]} exd5 {[%emt 0:00:25]} 5. cxd5 {[%emt 0:00:06]} d6 {[%emt 0:00:20]} 6. Nc3 {[%emt 0:00:23]} g6 {[%emt 0:00:21]} 7. Bg2 {[%emt 0:00:20]} Bg7 {[%emt 0:00:23]} 8. Nf3 {[%emt 0:00:18]} O-O {[%emt 0:00:20]} 9. O-O {[%emt 0:00:07]} Re8 {[%emt 0:00:36]} 10. Re1 {[%emt 0:00:34]} a6 {[%emt 0:00:32]} 11. a4 {[%emt 0:02:24]} Nbd7 {[%emt 0:00:26]} 12. Bf4 {[%emt 0:00:55]} Ng4 {[%emt 0:00:29]} 13. h3 {[%emt 0:00:51]} Nge5 {[%emt 0:00:22]} 14. Ne4 {[%emt 0:00:34]} Qe7 {[%emt 0:00:43]} 15. Rc1 {[%emt 0:09:52]} h6 {[%emt 0:03:33]} 16. b4 {[%emt 0:08:23]} cxb4 {[%emt 0:10:18]} 17. Rc7 {[%emt 0:03:21]} f5 {[%emt 0:07:23]} 18. Nxe5 {[%emt 0:09:43]} dxe5 {[%emt 0:04:02]} 19. d6 {[%emt 0:00:30]} Qf8 {[%emt 0:01:43]} 20. Qb3+ {[%emt 0:04:19]} Kh8 {[%emt 0:02:11]} 21. Bg5 {[%emt 0:04:51]} hxg5 {[%emt 0:09:52]} 22. Nxg5 {[%emt 0:00:05]} e4 {[%emt 0:07:43]} 23. Nf7+ {[%emt 0:04:03]} Kh7 {[%emt 0:00:51]} 24. Ng5+ {[%emt 0:00:13]} Kh8 {[%emt 0:01:25]} 25. Nf7+ {[%emt 0:00:16]} Kh7 {[%emt 0:01:07]} 26. Ng5+ {[%emt 0:00:07]} Kh8 {[%emt 0:01:09]} 1/2-1/2

[Event "44th Chess Olympiad Women 2022"]
[Site "Chennai"]
[Date "2022.08.09"]
[Round "11.15"]
[White "Olde, Margareth"]
[Black "Avramidou, Anastasia"]
[Result "1/2-1/2"]
[ECO "E73"]
[WhiteElo "2235"]
[BlackElo "2274"]
[Annotator "RC"]
[PlyCount "142"]
[EventDate "2022.07.29"]
[EventType "team-tourn"]
[EventCountry "IND"]
[SourceTitle "playchess.com"]
[Source "ChessBase"]
[SourceQuality "1"]
[WhiteTeam "Estonia"]
[BlackTeam "Greece"]
[WhiteTeamCountry "EST"]
[BlackTeamCountry "GRE"]
[TimeControl "40/5400+30:1800+30"]

1. d4 {[%emt 0:00:02]} Nf6 {[%emt 0:00:09]} 2. c4 {[%emt 0:00:07]} g6 {[%emt 0:00:04]} 3. Nc3 {[%emt 0:00:11]} Bg7 {[%emt 0:00:04]} 4. e4 {[%emt 0:00:14]} d6 {[%emt 0:00:06]} 5. Be2 {[%emt 0:00:23]} O-O {[%emt 0:00:34]} 6. Be3 {[%emt 0:00:12]} Nc6 {[%emt 0:00:07]} 7. d5 {[%emt 0:00:28]} Ne5 {[%emt 0:00:07]} 8. h3 {[%emt 0:01:15]} e6 {[%emt 0:00:13]} 9. Nf3 {[%emt 0:19:22]} Nxf3+ {[%emt 0:04:05]} 10. Bxf3 {[%emt 0:00:05]} exd5 {[%emt 0:00:10]} 11. cxd5 {[%emt 0:02:16]} Nd7 {[%emt 0:08:58]} 12. O-O {[%emt 0:04:26]} Ne5 {[%emt 0:03:15]} 13. Be2 {[%emt 0:00:15]} f5 {[%emt 0:00:08]} 14. f4 {[%emt 0:06:14]} Nd7 {[%emt 0:02:34]} 15. Bd4 {[%emt 0:02:07]} Bxd4+ {[%emt 0:56:38]} 16. Qxd4 {[%emt 0:00:11]} Qf6 {[%emt 0:00:02]} 17. Qxf6 {[%emt 0:07:20]} Nxf6 {[%emt 0:04:44]} 18. e5 {[%emt 0:00:36]} Nd7 {[%emt 0:05:53]} 19. e6 {[%emt 0:02:58]} Nf6 {[%emt 0:00:48]} 20. Bb5 {[%emt 0:11:53]} c6 {[%emt 0:01:54]} 21. dxc6 {[%emt 0:01:07]} Bxe6 {[%emt 0:00:06]} 22. cxb7 {[%emt 0:00:07]} Rab8 {[%emt 0:00:19]} 23. Bc6 {[%emt 0:00:22]} Bc4 {[%emt 0:01:03]} 24. Rfd1 {[%emt 0:08:03]} Ba6 {[%emt 0:00:32]} 25. Rxd6 {[%emt 0:02:19]} Bxb7 {[%emt 0:00:06]} 26. Bxb7 {[%emt 0:09:08]} Rxb7 {[%emt 0:00:04]} 27. Rd2 {[%emt 0:02:32]} Rfb8 {[%emt 0:00:59]} 28. b3 {[%emt 0:01:35]} Rc8 {[%emt 0:00:55]} 29. Rd3 {[%emt 0:02:49]} Re7 {[%emt 0:05:17]} 30. Rad1 {[%emt 0:01:21]} Kf7 {[%emt 0:01:03]} 31. Nd5 {[%emt 0:02:29]} Nxd5 {[%emt 0:00:06]} 32. Rxd5 {[%emt 0:00:04]} Rc2 {[%emt 0:00:58]} 33. R1d2 {[%emt 0:00:17]} Rcc7 {[%emt 0:01:42]} 34. Kf2 {[%emt 0:00:35]} Rb7 {[%emt 0:00:48]} 35. h4 {[%emt 0:01:55]} Kg7 {[%emt 0:01:05]} 36. h5 {[%emt 0:00:58]} Kh6 {[%emt 0:01:37]} 37. hxg6 {[%emt 0:00:16]} hxg6 {[%emt 0:00:04]} 38. Rd6 {[%emt 0:01:14]} Rbc7 {[%emt 0:00:25]} 39. a4 {[%emt 0:02:53]} Re4 {[%emt 0:00:44]} 40. R6d4 {[%emt 0:01:45]} Rxd4 {[%emt 0:00:44]} 41. Rxd4 {[%emt 0:30:07]} Rc2+ {[%emt 0:30:04]} 42. Kg1 {[%emt 0:03:40]} a5 {[%emt 0:00:00]} 43. Rd3 {[%emt 0:00:00]} Kh5 {[%emt 0:00:00]} 44. Kh2 {[%emt 0:00:00]} Kg4 {[%emt 0:00:00]} 45. Rg3+ {[%emt 0:00:00]} Kxf4 {[%emt 0:00:00]} 46. Rxg6 {[%emt 0:00:00]} Rb2 {[%emt 0:00:00]} 47. Ra6 {[%emt 0:00:00]} Rxb3 {[%emt 0:00:00]} 48. Rxa5 {[%emt 0:00:00]} Ra3 {[%emt 0:00:00]} 49. Ra8 {[%emt 0:00:00]} Kg5 {[%emt 0:00:00]} 50. a5 {[%emt 0:02:36]} Kg6 {[%emt 0:00:04]} 51. Ra7 {[%emt 0:00:13]} Kf6 {[%emt 0:02:48]} 52. a6 {[%emt 0:00:09]} Kg6 {[%emt 0:00:08]} 53. Kg1 {[%emt 0:00:02]} Kh6 {[%emt 0:00:41]} 54. Kf2 {[%emt 0:00:13]} Kg6 {[%emt 0:00:10]} 55. Ke2 {[%emt 0:00:40]} Kh6 {[%emt 0:00:06]} 56. Ra8 {[%emt 0:05:39]} Kg7 {[%emt 0:00:06]} 57. Kd2 {[%emt 0:00:35]} Ra2+ {[%emt 0:01:18]} 58. Kc3 {[%emt 0:00:39]} Rxg2 {[%emt 0:00:37]} 59. Kb3 {[%emt 0:00:36]} Rg1 {[%emt 0:00:11]} 60. Kb2 {[%emt 0:01:47]} Rg4 {[%emt 0:00:03]} 61. Rb8 {[%emt 0:00:41]} Ra4 {[%emt 0:00:07]} 62. Rb6 {[%emt 0:00:30]} f4 {[%emt 0:01:16]} 63. Kc2 {[%emt 0:00:13]} f3 {[%emt 0:02:18]} 64. Kd2 {[%emt 0:00:19]} Ra2+ {[%emt 0:00:07]} 65. Ke1 {[%emt 0:00:06]} f2+ {[%emt 0:00:16]} 66. Kf1 {[%emt 0:00:02]} Kf7 {[%emt 0:00:52]} 67. Rh6 {[%emt 0:00:17]} Kg7 {[%emt 0:00:05]} 68. Re6 {[%emt 0:00:17]} Kf7 {[%emt 0:00:10]} 69. Re2 {[%emt 0:00:05]} Rxa6 {[%emt 0:00:06]} 70. Rxf2+ {[%emt 0:00:02]} Rf6 {[%emt 0:00:08]} 71. Rxf6+ {[%emt 0:00:03]} Kxf6 {[%emt 0:00:06]} 1/2-1/2

[Event "44th Chess Olympiad Women 2022"]
[Site "Chennai"]
[Date "2022.08.09"]
[Round "11.15"]
[White "Pavlidou, Ekaterini"]
[Black "Sinitsina, Anastassia"]
[Result "0-1"]
[ECO "E70"]
[WhiteElo "2138"]
[BlackElo "2175"]
[Annotator "RC"]
[PlyCount "124"]
[EventDate "2022.07.29"]
[EventType "team-tourn"]
[EventCountry "IND"]
[SourceTitle "playchess.com"]
[Source "ChessBase"]
[SourceQuality "1"]
[WhiteTeam "Greece"]
[BlackTeam "Estonia"]
[WhiteTeamCountry "GRE"]
[BlackTeamCountry "EST"]
[TimeControl "40/5400+30:1800+30"]

1. d4 {[%emt 0:00:39]} Nf6 {[%emt 0:00:07]} 2. c4 {[%emt 0:00:17]} g6 {[%emt 0:00:18]} 3. Nc3 {[%emt 0:00:14]} Bg7 {[%emt 0:00:10]} 4. e4 {[%emt 0:00:17]} d6 {[%emt 0:00:05]} 5. Bd3 {[%emt 0:02:03]} O-O {[%emt 0:00:20]} 6. Nge2 {[%emt 0:00:08]} Nc6 {[%emt 0:00:20]} 7. O-O {[%emt 0:02:02]} Nd7 {[%emt 0:00:44]} 8. Bc2 {[%emt 0:00:32]} e5 {[%emt 0:00:25]} 9. d5 {[%emt 0:00:16]} Nd4 {[%emt 0:01:00]} 10. Nxd4 {[%emt 0:01:19]} exd4 {[%emt 0:00:07]} 11. Ne2 {[%emt 0:03:57]} Ne5 {[%emt 0:04:06]} 12. Nxd4 {[%emt 0:07:00]} Nxc4 {[%emt 0:00:12]} 13. Rb1 {[%emt 0:05:01]} Bd7 {[%emt 0:06:18]} 14. b3 {[%emt 0:03:50]} Nb6 {[%emt 0:02:36]} 15. Be3 {[%emt 0:02:52]} Re8 {[%emt 0:10:54]} 16. Qd2 {[%emt 0:02:04]} c6 {[%emt 0:01:59]} 17. dxc6 {[%emt 0:01:09]} bxc6 {[%emt 0:00:10]} 18. Rbd1 {[%emt 0:07:09]} d5 {[%emt 0:01:38]} 19. Ne2 {[%emt 0:02:01]} Qc7 {[%emt 0:04:45]} 20. Kh1 {[%emt 0:06:55]} Bc8 {[%emt 0:02:48]} 21. Bf4 {[%emt 0:05:58]} Qe7 {[%emt 0:03:14]} 22. Ng3 {[%emt 0:05:40]} Qa3 {[%emt 0:03:52]} 23. e5 {[%emt 0:02:51]} Nd7 {[%emt 0:09:45]} 24. Rfe1 {[%emt 0:01:14]} a5 {[%emt 0:01:28]} 25. Bh6 {[%emt 0:04:48]} Qb4 {[%emt 0:01:46]} 26. Qc1 {[%emt 0:02:03]} Rxe5 {[%emt 0:01:20]} 27. Bxg7 {[%emt 0:01:44]} Kxg7 {[%emt 0:00:25]} 28. Rxe5 {[%emt 0:01:37]} Nxe5 {[%emt 0:00:04]} 29. Qg5 {[%emt 0:05:23]} Ng4 {[%emt 0:00:45]} 30. Nh5+ {[%emt 0:04:29]} Kg8 {[%emt 0:00:08]} 31. h3 {[%emt 0:13:45]} h6 {[%emt 0:03:44]} 32. Nf6+ {[%emt 0:05:34]} Kf8 {[%emt 0:02:18]} 33. Qh4 {[%emt 0:00:36]} g5 {[%emt 0:12:38]} 34. Nh7+ {[%emt 0:00:04]} Kg7 {[%emt 0:00:04]} 35. Qg3 {[%emt 0:00:10]} Qb8 {[%emt 0:00:40]} 36. hxg4 {[%emt 0:01:42]} Qxg3 {[%emt 0:00:06]} 37. fxg3 {[%emt 0:00:06]} Bxg4 {[%emt 0:00:06]} 38. Rf1 {[%emt 0:00:11]} f5 {[%emt 0:00:30]} 39. Bxf5 {[%emt 0:00:10]} Bxf5 {[%emt 0:00:13]} 40. Rxf5 {[%emt 0:00:06]} Kxh7 {[%emt 0:00:13]} 41. Rf7+ {[%emt 0:30:13]} Kg6 {[%emt 0:30:10]} 42. Rc7 {[%emt 0:00:03]} Ra6 {[%emt 0:00:21]} 43. g4 {[%emt 0:01:10]} h5 {[%emt 0:00:29]} 44. Kh2 {[%emt 0:00:00]} hxg4 {[%emt 0:00:00]} 45. Kg3 {[%emt 0:00:00]} Kf5 {[%emt 0:00:00]} 46. Rf7+ {[%emt 0:00:00]} Ke4 {[%emt 0:00:00]} 47. Kxg4 {[%emt 0:00:00]} d4 {[%emt 0:00:00]} 48. Re7+ {[%emt 0:00:00]} Kd3 {[%emt 0:00:00]} 49. Re5 {[%emt 0:00:00]} a4 {[%emt 0:00:00]} 50. Rxg5 {[%emt 0:00:00]} axb3 {[%emt 0:00:00]} 51. axb3 {[%emt 0:00:00]} Kc3 {[%emt 0:00:00]} 52. Rc5+ {[%emt 0:00:00]} Kxb3 {[%emt 0:00:00]} 53. Kf4 {[%emt 0:00:00]} Kb4 {[%emt 0:00:00]} 54. Rc1 {[%emt 0:00:00]} c5 {[%emt 0:00:00]} 55. g4 {[%emt 0:00:00]} c4 {[%emt 0:00:00]} 56. g5 {[%emt 0:00:00]} d3 {[%emt 0:00:00]} 57. Ke3 {[%emt 0:00:00]} Re6+ {[%emt 0:00:00]} 58. Kd4 {[%emt 0:00:00]} Rd6+ {[%emt 0:00:00]} 59. Ke5 {[%emt 0:00:00]} Rd8 {[%emt 0:00:00]} 60. g6 {[%emt 0:00:00]} d2 {[%emt 0:00:00]} 61. Rb1+ {[%emt 0:00:00]} Kc3 {[%emt 0:00:00]} 62. g7 {[%emt 0:00:00]} Kc2 {[%emt 0:22:24]} 0-1